fUSD/lending_fUSD_20260203
["ID","MTS","AMOUNT","RATE_DAILY","PERIOD"]
[404401415,1770107443451,-500.0,0.00017,7]
[404401416,1770107443460,-500.0,0.00017,7]
[404401417,1770107443471,-500.0,0.00017,7]
[404401418,1770107443481,-500.0,0.00017,7]
[404401419,1770107443492,-500.0,0.00017,7]
[404401420,1770107443503,-500.0,0.00017,7]
[404401421,1770107443514,-500.0,0.00017,7]
[404401422,1770107443523,-500.0,0.00017,7]
[404401423,1770107443532,-500.0,0.00017,7]
[404401424,1770107443542,-500.0,0.00017,7]
[404401425,1770107443551,-500.0,0.00017,7]
[404401426,1770107443560,-500.0,0.00017,7]
[404401427,1770107443569,-500.0,0.00017,7]
[404401428,1770107443579,-500.0,0.00017,7]
[404401429,1770107443588,-160.0,0.00017,7]
[404401430,1770107443597,-500.0,0.00017,7]
[404401431,1770107443607,-500.0,0.00017,7]
[404401432,1770107443616,-500.0,0.00017,7]
[404401433,1770107443625,-500.0,0.00017,7]
[404401434,1770107443634,-500.0,0.00017,7]
[404401435,1770107443643,-404.8,0.00017,7]
[404401436,1770107443652,-500.0,0.00017,7]
[404401437,1770107443662,-500.0,0.00017,7]
[404401438,1770107443671,-500.0,0.00017,7]
[404401439,1770107443680,-500.0,0.00017,7]
[404401440,1770107443689,-500.0,0.00017,7]
[404401441,1770107443699,-500.0,0.00017,7]
[404401442,1770107443708,-500.0,0.00017,7]
[404401443,1770107443718,-500.0,0.00017,7]
[404401444,1770107443727,-500.0,0.00017,7]
[404401445,1770107443736,-500.0,0.00017,7]
[404401446,1770107443745,-500.0,0.00017,7]
[404401447,1770107443754,-500.0,0.00017,7]
[404401448,1770107443763,-500.0,0.00017,7]
[404401449,1770107443772,-500.0,0.00017,7]
[404401450,1770107443782,-500.0,0.00017,7]
[404401451,1770107443792,-500.0,0.00017,7]
[404401452,1770107443801,-500.0,0.00017,7]
[404401453,1770107443812,-500.0,0.00017,7]
[404401454,1770107443823,-500.0,0.00017,7]
[404401455,1770107443833,-500.0,0.00017,7]
[404401456,1770107443843,-500.0,0.00017,7]
[404401457,1770107443855,-500.0,0.00017,7]
[404401458,1770107443870,-500.0,0.00017,7]
[404401459,1770107443881,-500.0,0.00017,7]
[404401460,1770107443892,-500.0,0.00017,7]
[404401461,1770107443905,-500.0,0.00017,7]
[404401462,1770107443914,-500.0,0.00017,7]
[404401463,1770107443926,-500.0,0.00017,7]
[404401464,1770107443938,-500.0,0.00017,7]
[404401465,1770107443950,-500.0,0.00017,7]
[404401466,1770107443961,-500.0,0.00017,7]
[404401467,1770107443971,-500.0,0.00017,7]
[404401468,1770107443983,-500.0,0.00017,7]
[404401469,1770107443993,-500.0,0.00017,7]
[404401470,1770107444003,-500.0,0.00017,7]
[404401471,1770107444013,-500.0,0.00017,7]
[404401472,1770107444021,-500.0,0.00017,7]
[404401473,1770107444032,-500.0,0.00017,7]
[404401474,1770107444044,-500.0,0.00017,7]
[404401475,1770107444054,-500.0,0.00017,7]
[404401476,1770107444065,-500.0,0.00017,7]
[404401477,1770107444077,-500.0,0.00017,7]
[404401478,1770107444087,-500.0,0.00017,7]
[404401479,1770107444097,-500.0,0.00017,7]
[404401480,1770107444107,-500.0,0.00017,7]
[404401481,1770107444118,-500.0,0.00017,7]
[404401482,1770107444128,-500.0,0.00017,7]
[404401483,1770107444137,-500.0,0.00017,7]
[404401484,1770107444148,-500.0,0.00017,7]
[404401485,1770107444158,-500.0,0.00017,7]
[404401486,1770107444168,-500.0,0.00017,7]
[404401487,1770107444178,-500.0,0.00017,7]
[404401488,1770107444188,-500.0,0.00017,7]
[404401489,1770107444200,-500.0,0.00017,7]
[404401490,1770107444210,-500.0,0.00017,7]
[404401491,1770107444220,-500.0,0.00017,7]
[404401492,1770107444230,-500.0,0.00017,7]
[404401493,1770107444239,-500.0,0.00017,7]
[404401494,1770107444248,-500.0,0.00017,7]
[404401495,1770107444258,-500.0,0.00017,7]
[404401497,1770107444269,-166.51,0.00017,7]
[404401499,1770107444282,-1500.0,0.00017,2]
[404401502,1770107444294,-594480.83671277,0.00017,2]
[404401504,1770107444815,-12221.00418217,0.00017,2]
[404401505,1770107445029,-17616.73598971,0.00017,2]
[404401506,1770107445038,-160.0,0.00017,2]
[404401507,1770107445048,-1000.0,0.00017028,7]
[404401508,1770107445059,-150.0141996,0.0001704,2]
[404401509,1770107445070,-151.0,0.00017099,2]
[404401510,1770107445080,-156.587,0.00017099,2]
[404401511,1770107445090,-162.380719,0.00017099,2]
[404401512,1770107445099,-157.73690742,0.00017099,2]
[404401513,1770107445109,-578.20924308,0.00017099,2]
[404401514,1770107445118,-174.61919141,0.00017099,2]
[404401515,1770107445127,-721.12765535,0.00017099,2]
[404401516,1770107445136,-209.40437684,0.00017099,2]
[404401517,1770107445146,-500.0,0.00017099,2]
[404401518,1770107445156,-500.0,0.00017099,2]
[404401519,1770107445166,-500.0,0.00017099,2]
[404401520,1770107445175,-500.0,0.00017099,2]
[404401521,1770107445184,-500.0,0.00017099,2]
[404401522,1770107445194,-500.0,0.00017099,2]
[404401523,1770107445203,-500.0,0.00017099,2]
[404401524,1770107445212,-500.0,0.00017099,2]
[404401525,1770107445221,-500.0,0.00017099,2]
[404401526,1770107445231,-500.0,0.00017099,2]
[404401527,1770107445241,-500.0,0.00017099,2]
[404401528,1770107445251,-322.6107,0.00017099,2]
[404401529,1770107445262,-1000.0,0.00017112,2]
[404401530,1770107445273,-1459.54,0.00017123,2]
[404401531,1770107445283,-500.0,0.00017123,2]
[404401532,1770107445292,-217.15233878,0.00017154,2]
[404401533,1770107445303,-177.46,0.00017178,2]
[404401534,1770107445313,-225.18697532,0.00017209,2]
[404401535,1770107445323,-612.2,0.00017221,2]
[404401536,1770107445332,-614.43,0.00017221,2]
[404401537,1770107445342,-587.79,0.00017221,2]
[404401538,1770107445352,-614.3,0.00017221,2]
[404401539,1770107445361,-614.3,0.00017221,2]
[404401540,1770107445372,-614.3,0.00017221,2]
[404401541,1770107445382,-614.3,0.00017221,2]
[404401542,1770107445392,-614.3,0.00017221,2]
[404401543,1770107445402,-15309.81864055,0.00017243,2]
[404401544,1770107445411,-20714.7204,0.00017243,2]
[404401545,1770107445422,-1000.0,0.0001726,2]
[404401546,1770107445431,-233.51889341,0.00017264,2]
[404401547,1770107445440,-5888.0,0.00017301,2]
[404401548,1770107445450,-242.15909246,0.00017319,2]
[404401549,1770107445460,-5888.0,0.00017324,2]
[404401550,1770107445469,-500.98,0.00017353,2]
[404401551,1770107445479,-150.0,0.00017358,2]
[404401552,1770107445488,-150.0,0.00017358,2]
[404401553,1770107445498,-300.0,0.00017358,2]
[404401554,1770107445507,-838.36,0.00017358,2]
[404401555,1770107445517,-251.11897888,0.00017374,2]
[404401556,1770107445526,-1459.80834379,0.00017397,2]
[404401557,1770107445536,-691.0,0.00017426,2]
[404401558,1770107445545,-260.4103811,0.00017429,2]
[404401559,1770107445555,-5888.0,0.00017482,2]
[404401560,1770107445564,-270.0455652,0.00017484,2]
[404401561,1770107445574,-160.0,0.000175,7]
[404401562,1770107445583,-52248.952038,0.000175,3]
[404401563,1770107445593,-1500.0,0.000175,2]
[404401564,1770107445602,-200.0,0.00017518,2]
[404401565,1770107445612,-1000.0,0.00017534,2]
[404401566,1770107445623,-280.03725112,0.00017539,2]
[404401567,1770107445633,-5888.0,0.0001757,2]
[404401568,1770107445643,-200.0,0.00017582,2]
[404401569,1770107445653,-290.39862941,0.00017594,2]
[404401570,1770107445662,-333.97,0.000176,2]
[404401571,1770107445671,-5888.0,0.000176,2]
[404401572,1770107445681,-30000.0,0.0001761,2]
[404401573,1770107445691,-150.0,0.00017616,2]
[404401574,1770107445700,-150.0,0.00017616,2]
[404401575,1770107445710,-150.0,0.00017616,2]
[404401576,1770107445719,-150.0,0.00017616,2]
[404401577,1770107445728,-150.0,0.00017616,2]
[404401578,1770107445739,-300.0,0.00017616,2]
[404401579,1770107445748,-587.8745622,0.0001764,2]
[404401580,1770107445757,-181.08010149,0.00017647,2]
[404401581,1770107445767,-301.1433787,0.00017649,2]
[404401582,1770107445776,-3253.0,0.00017696,2]
[404401583,1770107445785,-1410.0,0.00017696,2]
[404401584,1770107445795,-616.0,0.00017696,2]
[404401585,1770107445804,-3393.83018374,0.000177,2]
[404401586,1770107445814,-1000.0,0.00017709,2]
[404401587,1770107445823,-5888.0,0.0001773,2]
[404401588,1770107445833,-1000.0,0.0001773,2]
[404401589,1770107445843,-1000.0,0.00017733,2]
[404401590,1770107445852,-5888.0,0.00017733,2]
[404401591,1770107445862,-1000.0,0.00017736,2]
[404401592,1770107445875,-150.0,0.0001774,2]
[404401593,1770107445884,-401.0,0.00017744,2]
[404401594,1770107445893,-983.42551089,0.00017749,2]
[404401595,1770107445904,-150.0,0.00017749,2]
[404401596,1770107445913,-150.0,0.00017752,2]
[404401597,1770107445922,-407.0,0.00017755,2]
[404401598,1770107445933,-1000.0,0.00017757,2]
[404401599,1770107445946,-200.0,0.00017766,2]
[404401600,1770107445955,-150.0,0.00017767,2]
[404401601,1770107445965,-1000.0,0.00017768,2]
[404401602,1770107445976,-5888.0,0.00017782,2]
[404401603,1770107445987,-1000.0,0.00017782,2]
[404401604,1770107445996,-1000.0,0.00017782,2]
[404401605,1770107446005,-1000.0,0.00017782,2]
[404401606,1770107446015,-151.0,0.00017791,2]
[404401607,1770107446024,-407.0,0.00017792,2]
[404401608,1770107446034,-1000.0,0.00017793,2]
[404401609,1770107446044,-161.1995,0.00017794,2]
[404401610,1770107446053,-66937.707871,0.00017794,2]
[404401611,1770107446062,-518886.4496486,0.00017794,2]
[404401612,1770107446072,-15627.6024724,0.00017794,2]
[404401613,1770107446081,-195.963946,0.00017794,2]
[404401614,1770107446091,-195.963946,0.00017794,2]
[404401615,1770107446101,-195.963946,0.00017794,2]
[404401616,1770107446111,-195.963946,0.00017794,2]
[404401617,1770107446121,-287.105834,0.00017794,2]
[404401618,1770107446130,-287.105834,0.00017794,2]
[404401619,1770107446139,-1358.40379,0.00017794,2]
[404401620,1770107446148,-287.105834,0.00017794,2]
[404401621,1770107446158,-908.531434,0.00017794,2]
[404401622,1770107446167,-2413.772951,0.00017794,2]
[404401623,1770107446176,-1358.40379,0.00017794,2]
[404401624,1770107446186,-287.105834,0.00017794,2]
[404401625,1770107446195,-908.531434,0.00017794,2]
[404401626,1770107446204,-2413.772951,0.00017794,2]
[404401627,1770107446213,-1358.40379,0.00017794,2]
[404401628,1770107446223,-908.531434,0.00017794,2]
[404401629,1770107446232,-1358.40379,0.00017794,2]
[404401630,1770107446241,-2413.772951,0.00017794,2]
[404401631,1770107446251,-908.531434,0.00017794,2]
[404401632,1770107446260,-2413.772951,0.00017794,2]
[404401633,1770107446269,-338.627699,0.00017794,2]
[404401634,1770107446278,-338.627699,0.00017794,2]
[404401635,1770107446287,-338.627699,0.00017794,2]
[404401636,1770107446296,-338.627699,0.00017794,2]
[404401637,1770107446306,-151.0,0.00017794,2]
[404401638,1770107446316,-151.0,0.00017794,2]
[404401639,1770107446326,-151.0,0.00017794,2]
[404401640,1770107446335,-1000.0,0.00017807,2]
[404401641,1770107446346,-1000.0,0.00017807,2]
[404401642,1770107446356,-250.0,0.00017808,20]
[404401643,1770107446366,-250.0,0.00017808,20]
[404401644,1770107446375,-250.0,0.00017808,20]
[404401645,1770107446385,-250.0,0.00017808,20]
[404401646,1770107446396,-250.0,0.00017808,20]
[404401647,1770107446407,-285.815377,0.00017808,20]
[404401648,1770107446416,-1000.0,0.00017808,2]
[404401649,1770107446426,-1000.0,0.00017815,2]
[404401650,1770107446437,-1000.0,0.00017816,2]
[404401651,1770107446447,-1000.0,0.00017817,2]
[404401652,1770107446456,-2000.0,0.0001782,2]
[404401653,1770107446467,-2000.0,0.0001782,2]
[404401654,1770107446476,-1000.0,0.00017822,2]
[404401655,1770107446486,-150.0,0.00017823,2]
[404401656,1770107446495,-150.0,0.00017823,2]
[404401657,1770107446505,-150.0,0.00017827,2]
[404401658,1770107446515,-1000.0,0.00017836,2]
[404401659,1770107446526,-5888.0,0.00017838,2]
[404401660,1770107446535,-407.0,0.00017841,2]
[404401661,1770107446545,-1000.0,0.00017844,2]
[404401662,1770107446555,-200.0,0.00017855,2]
[404401663,1770107446565,-200.0,0.00017856,2]
[404401664,1770107446575,-150.0,0.00017856,2]
[404401665,1770107446585,-150.0,0.00017857,2]
[404401666,1770107446594,-25000.0,0.00017865,3]
[404401667,1770107446605,-1000.0,0.00017866,2]
[404401668,1770107446617,-1000.0,0.00017872,2]
[404401669,1770107446626,-25000.0,0.00017874,3]
[404401670,1770107446636,-401.0,0.00017877,2]
[404401671,1770107446645,-1000.0,0.00017881,2]
[404401672,1770107446656,-150.0,0.00017881,2]
[404401673,1770107446666,-1000.0,0.00017882,2]
[404401674,1770107446675,-25000.0,0.00017882,3]
[404401675,1770107446685,-150.0,0.00017888,2]
[404401676,1770107446695,-1000.0,0.0001789,2]
[404401677,1770107446704,-25000.0,0.00017891,3]
[404401678,1770107446714,-1000.0,0.00017899,2]
[404401679,1770107446723,-233.0,0.000179,2]
[404401680,1770107446732,-500.0,0.000179,2]
[404401681,1770107446742,-25000.0,0.000179,3]
[404401682,1770107446752,-160.0,0.000179,3]
[404401683,1770107446762,-183.18333192,0.000179,2]
[404401684,1770107446771,-23106.24832845,0.000179,3]
[404401685,1770107446781,-6042.35870632,0.000179,2]
[404401686,1770107446791,-17971.0,0.000179,2]
[404401687,1770107446801,-200.0,0.00017915,2]
[404401688,1770107446811,-200.0,0.00017916,2]
[404401689,1770107446821,-1000.0,0.0001792,2]
[404401690,1770107446831,-1000.0,0.00017924,2]
[404401691,1770107446841,-150.0,0.00017928,2]
[404401692,1770107446851,-401.0,0.00017929,2]
[404401693,1770107446862,-1000.0,0.00017937,2]
[404401694,1770107446875,-401.0,0.00017944,2]
[404401695,1770107446885,-157.95285948,0.00017944,2]
[404401696,1770107446895,-150.0,0.0001795,2]
[404401697,1770107446905,-1000.0,0.00017952,2]
[404401698,1770107446915,-1000.0,0.00017957,2]
[404401699,1770107446925,-1000.0,0.00017957,2]
[404401700,1770107446934,-511.99630296,0.00017958,2]
[404401701,1770107446945,-1000.0,0.0001797,2]
[404401702,1770107446955,-150.0,0.00017977,2]
[404401703,1770107446965,-500.87084133,0.00017982,2]
[404401704,1770107446974,-407.0,0.00017987,2]
[404401705,1770107446983,-2888.05336964,0.0001799,3]
[404401706,1770107446992,-6635.2220609,0.0001799,2]
[404401707,1770107447002,-5888.0,0.00017991,2]
[404401708,1770107447012,-151.0,0.00017997,2]
[404401709,1770107447022,-155.0,0.00017999,2]
[404401710,1770107447031,-313.9472948,0.00017999,2]
[404401711,1770107447041,-300.0,0.00017999,2]
[404401712,1770107447050,-300.0,0.00017999,2]
[404401713,1770107447060,-300.0,0.00017999,2]
[404401714,1770107447070,-6340160.8934568,0.00018,2]
[404401715,1770107447092,-694.87068561,0.00018,2]
[404401716,1770107447104,-789.555,0.00018,2]
[404401719,1770107448758,-1988.78401324,0.00011099,2]
[404401720,1770107448777,-1178.5898413,0.00011099,2]
[404401736,1770107468311,304.97343423,8.129e-05,2]
[404401737,1770107468370,500.0,8.219e-05,2]
[404401738,1770107468436,230.07023335,8.129e-05,2]
[404401739,1770107468896,369.31548607,8.219e-05,2]
[404401765,1770107482666,8595.65084635,8.03e-05,2]
[404401766,1770107482705,10000.01,8.03e-05,2]
[404401767,1770107482744,10000.01,8.03e-05,2]
[404401768,1770107482781,10000.01,8.03e-05,2]
[404401769,1770107482819,10000.01,8.03e-05,2]
[404401770,1770107482854,10000.01,8.03e-05,2]
[404401771,1770107482890,10000.01,8.03e-05,2]
[404401772,1770107482928,10000.01,8.03e-05,2]
[404401773,1770107482963,10000.01,8.03e-05,2]
[404401774,1770107483002,10000.01,8.03e-05,2]
[404401775,1770107483422,-3044.85241129,8.03e-05,2]
[404401776,1770107483643,-5000.01,8.03e-05,2]
[404401777,1770107483879,-5000.01,8.03e-05,2]
[404401778,1770107483996,-5000.01,8.03e-05,2]
[404401779,1770107484123,-5000.01,8.03e-05,2]
[404401780,1770107486741,-5000.01,8.03e-05,2]
[404401781,1770107488519,-5000.01,8.03e-05,2]
[404401782,1770107488638,-5000.01,8.03e-05,2]
[404401783,1770107488757,-5000.01,8.03e-05,2]
[404401784,1770107488905,-5000.01,8.03e-05,2]
[404401785,1770107489043,-5000.01,8.03e-05,2]
[404401786,1770107489195,-5000.01,8.03e-05,2]
[404401787,1770107489344,-5000.01,8.03e-05,2]
[404401788,1770107489470,-5000.01,8.03e-05,2]
[404401789,1770107489585,-5000.01,8.03e-05,2]
[404401790,1770107492333,-5000.01,8.03e-05,2]
[404401791,1770107521929,300.0,8.029e-05,2]
[404401795,1770107529251,151.0,8.027e-05,2]
[404401815,1770107581720,150.0,8.029e-05,2]
[404401816,1770107582135,300.0,8.029e-05,2]
[404401817,1770107586437,213.48140396,8.029e-05,2]
[404401818,1770107591080,499.99999999,8.029e-05,2]
[404401819,1770107641826,300.0,8.029e-05,2]
[404401836,1770107664627,4122.6247,7.93e-05,2]
[404401837,1770107670897,3962.90389605,7.93e-05,2]
[404401838,1770107670923,10000.01,7.93e-05,2]
[404401839,1770107670954,10000.01,7.93e-05,2]
[404401840,1770107670979,2439.85410395,7.93e-05,2]
[404401843,1770107678712,1129.60682712,8.03e-05,2]
[404401844,1770107694007,223.7509448,8.03e-05,2]
[404401845,1770107701558,239.0,8.029e-05,2]
[404401846,1770107701600,300.0,8.029e-05,2]
[404401847,1770107701946,1200.0,8.029e-05,2]
[404401854,1770107710849,500.0,8.03e-05,2]
[404401857,1770107761729,150.0,8.029e-05,2]
[404401866,1770107774929,2410.32589039,8.03e-05,2]
[404401867,1770107778355,1407.47223374,7.93e-05,2]
[404401868,1770107778386,10000.01,7.93e-05,2]
[404401869,1770107778418,10000.01,7.93e-05,2]
[404401870,1770107778455,10000.01,7.93e-05,2]
[404401871,1770107778489,10000.01,7.93e-05,2]
[404401872,1770107778526,10000.01,7.93e-05,2]
[404401873,1770107778561,10000.01,7.93e-05,2]
[404401874,1770107778594,5000.01,7.93e-05,2]
[404401875,1770107778623,5000.01,7.93e-05,2]
[404401876,1770107778654,5000.01,7.93e-05,2]
[404401877,1770107778685,5000.01,7.93e-05,2]
[404401878,1770107778717,5000.01,7.93e-05,2]
[404401879,1770107778749,5000.01,7.93e-05,2]
[404401880,1770107778781,5000.01,7.93e-05,2]
[404401881,1770107778815,5000.01,7.93e-05,2]
[404401882,1770107778847,5000.01,7.93e-05,2]
[404401883,1770107778886,10000.01,7.93e-05,2]
[404401884,1770107778922,10000.01,7.93e-05,2]
[404401885,1770107778958,10000.01,7.93e-05,2]
[404401886,1770107779283,-1373.21172904,7.93e-05,2]
[404401887,1770107783347,-250.0,7.93e-05,2]
[404401888,1770107785552,-198.0,7.93e-05,2]
[404401889,1770107786654,-9378.75108485,7.93e-05,2]
[404401890,1770107786760,-10000.01,7.93e-05,2]
[404401891,1770107786930,-10000.01,7.93e-05,2]
[404401892,1770107787105,-10000.01,7.93e-05,2]
[404401895,1770107787225,-10000.01,7.93e-05,2]
[404401896,1770107787427,-10000.01,7.93e-05,2]
[404401897,1770107787564,-10000.01,7.93e-05,2]
[404401898,1770107788256,-300.0,7.93e-05,2]
[404401899,1770107791567,-10000.01,7.93e-05,2]
[404401900,1770107791716,-10000.01,7.93e-05,2]
[404401901,1770107791846,-10000.01,7.93e-05,2]
[404401902,1770107792012,-10000.01,7.93e-05,2]
[404401903,1770107792139,-10000.01,7.93e-05,2]
[404401904,1770107792269,-10000.01,7.93e-05,2]
[404401905,1770107792408,-10000.01,7.93e-05,2]
[404401906,1770107792546,-10000.01,7.93e-05,2]
[404401907,1770107792685,-10000.01,7.93e-05,2]
[404401908,1770107792813,-10000.01,7.93e-05,2]
[404401909,1770107792922,-3186.80222157,7.93e-05,2]
[404401910,1770107792963,-10000.01,7.93e-05,2]
[404401911,1770107793086,-10000.01,7.93e-05,2]
[404401912,1770107793233,-10000.01,7.93e-05,2]
[404401913,1770107793378,-10000.01,7.93e-05,2]
[404401914,1770107793510,-10000.01,7.93e-05,2]
[404401915,1770107795490,-500.0,7.93e-05,2]
[404401916,1770107798758,-302.0,7.93e-05,2]
[404401917,1770107800891,-300.0,7.93e-05,2]
[404401918,1770107802519,-302.0,7.93e-05,2]
[404401920,1770107821597,300.0,7.929e-05,2]
[404401925,1770107824021,1338.10693468,7.93e-05,2]
[404401926,1770107824071,482.883945,7.93e-05,2]
[404401927,1770107824121,174.48261702,7.93e-05,2]
[404401928,1770107824165,1489.12501748,7.93e-05,2]
[404401937,1770107849269,221.5,7.9e-05,2]
[404401938,1770107908038,993.91148582,7.929e-05,2]
[404401939,1770107908066,206.08851418,7.929e-05,2]
[404401940,1770107939694,208.49098025,7.929e-05,2]
[404401941,1770107939734,211.85535626,7.929e-05,2]
[404401942,1770107941683,150.0,7.929e-05,2]
[404401943,1770107941723,300.0,7.929e-05,2]
[404401945,1770107946099,500.0,7.929e-05,2]
[404401946,1770107946141,524.4478525,7.929e-05,2]
[404401947,1770107946215,500.0,7.929e-05,2]
[404401948,1770107946276,500.0,7.929e-05,2]
[404401949,1770107946339,500.0,7.929e-05,2]
[404401950,1770107946391,500.0,7.929e-05,2]
[404401951,1770107946446,500.0,7.929e-05,2]
[404401952,1770107946517,399.12729681,7.929e-05,2]
[404401953,1770107946542,100.87270319,7.929e-05,2]
[404401954,1770107946609,500.0,7.929e-05,2]
[404401955,1770107946688,500.0,7.929e-05,2]
[404401956,1770107947022,500.0,7.929e-05,2]
[404401957,1770107947079,500.0,7.929e-05,2]
[404401958,1770107947134,500.0,7.929e-05,2]
[404401959,1770107947189,500.0,7.929e-05,2]
[404401960,1770107947242,500.0,7.929e-05,2]
[404401961,1770107947311,500.0,7.929e-05,2]
[404401962,1770107947365,500.0,7.929e-05,2]
[404401963,1770107947426,399.13729681,7.929e-05,2]
[404401964,1770107947451,100.86270319,7.929e-05,2]
[404401965,1770107947507,500.0,7.929e-05,2]
[404401966,1770107947558,500.0,7.929e-05,2]
[404401967,1770107947620,500.0,7.929e-05,2]
[404401968,1770107947677,500.0,7.929e-05,2]
[404401969,1770107947724,500.0,7.929e-05,2]
[404401970,1770107947783,500.0,7.929e-05,2]
[404401971,1770107947857,500.0,7.929e-05,2]
[404401972,1770107947911,500.0,7.929e-05,2]
[404401973,1770107947962,500.0,7.929e-05,2]
[404401974,1770107948019,399.14729681,7.929e-05,2]
[404401975,1770107948047,100.85270319,7.929e-05,2]
[404401976,1770107948112,500.0,7.929e-05,2]
[404401977,1770107948188,500.0,7.929e-05,2]
[404401978,1770107948255,500.0,7.929e-05,2]
[404401979,1770107948300,500.0,7.929e-05,2]
[404401980,1770107948356,500.0,7.929e-05,2]
[404401981,1770107948413,500.0,7.929e-05,2]
[404401982,1770107948474,500.0,7.929e-05,2]
[404401983,1770107948531,500.0,7.929e-05,2]
[404401984,1770107948624,500.0,7.929e-05,2]
[404401985,1770107948695,399.15729681,7.929e-05,2]
[404401986,1770107948719,100.84270319,7.929e-05,2]
[404401987,1770107948773,500.0,7.929e-05,2]
[404401988,1770107948828,500.0,7.929e-05,2]
[404401989,1770107948878,500.0,7.929e-05,2]
[404401990,1770107948931,500.0,7.929e-05,2]
[404401991,1770107948982,500.0,7.929e-05,2]
[404401992,1770107949043,500.0,7.929e-05,2]
[404401993,1770107949093,500.0,7.929e-05,2]
[404401994,1770107949166,500.0,7.929e-05,2]
[404401995,1770107949249,500.0,7.929e-05,2]
[404401996,1770107949315,399.16729681,7.929e-05,2]
[404401997,1770107949340,100.83270319,7.929e-05,2]
[404401998,1770107949396,500.0,7.929e-05,2]
[404401999,1770107949449,500.0,7.929e-05,2]
[404402000,1770107949503,500.0,7.929e-05,2]
[404402001,1770107949575,500.0,7.929e-05,2]
[404402002,1770107949630,500.0,7.929e-05,2]
[404402003,1770107949707,500.0,7.929e-05,2]
[404402004,1770107949807,500.0,7.929e-05,2]
[404402005,1770107949874,500.0,7.929e-05,2]
[404402006,1770107949951,500.0,7.929e-05,2]
[404402007,1770107950008,399.17729681,7.929e-05,2]
[404402008,1770107950035,100.82270319,7.929e-05,2]
[404402009,1770107950123,500.0,7.929e-05,2]
[404402010,1770107950186,168.58173545,7.929e-05,2]
[404402011,1770107962120,535.59090558,7.929e-05,2]
[404402012,1770107962162,535.59090558,7.929e-05,2]
[404402013,1770107962201,535.59090558,7.929e-05,2]
[404402014,1770107962299,535.59090558,7.929e-05,2]
[404402015,1770107962341,535.59090558,7.929e-05,2]
[404402016,1770107962379,535.59090558,7.929e-05,2]
[404402017,1770107962416,535.59090558,7.929e-05,2]
[404402018,1770107962454,481.4692223,7.929e-05,2]
[404402019,1770107962482,54.12168328,7.929e-05,2]
[404402020,1770107962827,535.59090558,7.929e-05,2]
[404402021,1770107962877,535.59090558,7.929e-05,2]
[404402022,1770107962918,535.59090558,7.929e-05,2]
[404402023,1770107962959,535.59090558,7.929e-05,2]
[404402024,1770107963001,535.59090558,7.929e-05,2]
[404402025,1770107963041,535.59090558,7.929e-05,2]
[404402026,1770107963087,535.59090558,7.929e-05,2]
[404402027,1770107963127,535.59090558,7.929e-05,2]
[404402028,1770107963500,535.59090558,7.929e-05,2]
[404402029,1770107963547,125.5701665,7.929e-05,2]
[404402030,1770107963572,410.02073908,7.929e-05,2]
[404402031,1770107963612,535.59090558,7.929e-05,2]
[404402032,1770107963657,535.59090558,7.929e-05,2]
[404402033,1770107963697,535.59090558,7.929e-05,2]